bitfinex/quotes_SOLUSD_20240824
["timestamp","ask_amount","ask_price","bid_price","bid_amount"]
[1724529995807,22.7546,161.18,161.06,11.86395594]
[1724529996126,18.06935594,161.15,161.06,14.88614891]
[1724529996438,18.06935594,161.15,161.07,4.66084232]
[1724529996609,18.06935594,161.15,161.07,9.32168461]
[1724529996927,18.06935594,161.15,161.07,4.66084232]
[1724529998411,18.06935594,161.15,161.08,3.02197486]
[1724529998604,18.06935594,161.15,161.07,4.66084232]
[1724529998803,6.2057,161.14,161.08,3.02197486]
[1724529999007,6.2057,161.14,161.07,4.66084232]
[1724529999313,6.2057,161.14,161.08,3.02202205]
[1724529999534,6.2057,161.14,161.07,4.66084232]
[1724530000822,11.86395594,161.15,161.07,4.66084232]
[1724530001623,6.2061,161.14,161.07,4.66084232]
[1724530001802,11.86395594,161.13,161.07,4.66084232]
[1724530002632,11.86395594,161.13,161.05,15.2991]
[1724530002808,11.86395594,161.13,161.06,3.0222989]
[1724530003131,6.2074,161.1,161.03,6.1467]
[1724530003335,79.1823,161.17,161.04,3.02278795]
[1724530003336,18.07165594,161.09,161.04,3.02278795]
[1724530003632,11.86395594,161.09,161.02,3.02278795]
[1724530003845,6.2083,161.08,161.01,15.2991]
[1724530004011,69.06432376,161.12,160.98,6.1467]
[1724530004012,11.86395594,161.05,160.98,6.1467]
[1724530004203,11.86395594,161.05,160.99,3.02352853]
[1724530004408,11.86395594,161.05,160.97,15.2991]
[1724530005305,6.2097,161.04,160.97,15.2991]
[1724530008351,18.07315594,161.05,160.97,15.2991]
[1724530013851,6.2088,161.06,160.97,27.16305594]
[1724530014053,16.2019,161.11,160.99,11.86395594]
[1724530014213,28.06585594,161.11,161.01,11.86395594]
[1724530015379,6.2077,161.09,161.01,11.86395594]
[1724530016743,6.2081,161.08,161.01,11.86395594]
[1724530016941,6.2081,161.08,160.99,17.98595594]
[1724530018140,20.0,161.1,161.01,11.86395594]
[1724530018348,20.0,161.11,161.01,11.86395594]
[1724530018560,51.2076,161.1,161.01,11.86395594]
[1724530018761,45.0,161.1,161.01,11.86395594]
[1724530019267,51.2073,161.1,161.01,11.86395594]
[1724530020266,6.2073,161.1,161.02,16.352]
[1724530020454,6.2073,161.1,161.03,11.86395594]
[1724530021039,6.2069,161.11,161.03,11.86395594]
[1724530022043,6.2081,161.08,161.02,16.352]
[1724530022243,6.2073,161.1,161.02,16.352]
[1724530022568,6.2069,161.11,161.02,16.352]
[1724530027151,6.2069,161.11,161.03,6.0797]
[1724530028366,18.07055594,161.12,161.03,17.94365594]
[1724530028559,18.07005594,161.14,161.05,11.86395594]
[1724530028758,6.2062,161.13,161.05,11.86395594]
[1724530031664,6.2062,161.13,161.06,15.6282]
[1724530034389,11.86395594,161.12,161.06,15.6282]
[1724530036252,11.86395594,161.1,161.06,15.6282]
[1724530038278,6.2071,161.11,161.06,15.6282]
[1724530038564,18.07045594,161.12,161.06,15.6282]
[1724530039781,6.2065,161.12,161.06,15.6282]
[1724530040572,11.86395594,161.16,161.07,6.4688]
[1724530040791,15.5529,161.19,161.07,18.33275594]
[1724530040995,18.06775594,161.19,161.09,11.86395594]
[1724530041294,18.06775594,161.19,161.1,15.8768]
[1724530041681,18.06785594,161.19,161.1,15.8768]
[1724530048084,18.06785594,161.19,161.11,6.4688]
[1724530049126,0.8402428,161.27,161.18,11.86395594]
[1724530049283,12.70419874,161.27,161.19,6.4688]
[1724530049489,11.86395594,161.25,161.19,6.4688]
[1724530049706,0.8402428,161.27,161.19,6.4688]
[1724530049882,11.86395594,161.24,161.19,6.4688]
[1724530050200,11.86395594,161.22,161.15,6.4688]
[1724530052290,11.86395594,161.24,161.15,6.4688]
[1724530053111,6.2016,161.25,161.15,6.4688]
[1724530053112,6.2016,161.25,161.15,18.33275594]
[1724530054314,11.86395594,161.26,161.15,18.33275594]
[1724530055719,18.06525594,161.26,161.15,18.33275594]
[1724530056285,11.86395594,161.24,161.15,18.33275594]
[1724530056491,11.86395594,161.24,161.15,6.4688]
[1724530057392,7.0412428,161.27,161.15,6.4688]
[1724530057596,11.86395594,161.24,161.15,6.4688]
[1724530060197,11.86395594,161.24,161.15,18.33275594]
[1724530061911,6.2025,161.23,161.15,18.33275594]
[1724530062114,11.86395594,161.24,161.15,18.33275594]
[1724530062724,11.86395594,161.24,161.15,6.4688]
[1724530062921,18.06595594,161.24,161.15,6.4688]
[1724530064001,11.86395594,161.22,161.15,6.4688]
[1724530064398,6.2023,161.23,161.15,6.4688]
[1724530064622,11.86395594,161.21,161.15,6.4688]
[1724530066613,18.06795594,161.19,161.15,6.4688]
[1724530067410,11.86395594,161.19,161.15,6.4688]
[1724530070012,18.06785594,161.19,161.14,15.8768]
[1724530070245,6.2039,161.19,161.14,15.8768]
[1724530077223,18.06735594,161.21,161.14,15.8768]
[1724530079337,51.48775781,161.26,161.14,15.8768]
[1724530079535,6.2027,161.22,161.14,15.8768]
[1724530083162,6.2023,161.23,161.14,15.8768]
[1724530083731,63.06675594,161.22,161.14,15.8768]
[1724530083935,11.86395594,161.2,161.14,15.8768]
[1724530084247,18.06755594,161.2,161.14,15.8768]
[1724530085760,6.2042,161.18,161.14,15.8768]
[1724530085933,18.06815594,161.18,161.14,15.8768]
[1724530086663,6.2033,161.21,161.14,15.8768]
[1724530086840,45.0,161.2,161.14,15.8768]
[1724530087041,6.2033,161.21,161.14,15.8768]
[1724530088253,18.06665594,161.22,161.14,15.8768]
[1724530091853,6.2027,161.22,161.15,1.55332609]
[1724530092259,18.06625594,161.23,161.15,1.55332609]
[1724530092641,18.06625594,161.23,161.16,1.55331714]
[1724530092839,18.06625594,161.23,161.15,1.55332609]
[1724530093039,18.06625594,161.23,161.16,1.55331457]
[1724530093251,18.06625594,161.23,161.14,15.8768]
[1724530093439,18.06625594,161.23,161.15,1.55330644]
[1724530093639,18.06625594,161.23,161.16,1.55330644]
[1724530093879,18.06625594,161.23,161.14,27.74075594]
[1724530094054,18.06625594,161.23,161.15,1.55331705]
[1724530094254,18.06625594,161.23,161.17,6.0415]
[1724530095760,6.2027,161.22,161.17,6.0415]
[1724530100254,6.2023,161.23,161.17,6.0415]
[1724530100771,6.2019,161.24,161.17,6.0415]
[1724530100970,20.0,161.24,161.17,6.0415]
[1724530101274,18.06555594,161.25,161.17,6.0415]
[1724530102254,6.202,161.24,161.17,6.0415]
[1724530102448,18.06635594,161.23,161.17,6.0415]
[1724530103562,11.86395594,161.21,161.17,6.0415]
[1724530104470,6.2039,161.19,161.17,6.0415]
[1724530105073,18.06735594,161.21,161.17,6.0415]
[1724530108773,6.2034,161.2,161.17,6.0415]
[1724530112559,6.2031,161.21,161.17,6.0415]
[1724530113689,6.2027,161.22,161.17,6.0415]
[1724530113905,6.2031,161.21,161.17,6.0415]
[1724530114772,0.8402428,161.27,161.17,6.0415]
[1724530114975,18.06585594,161.25,161.17,6.0415]
[1724530115789,6.202,161.24,161.17,6.0415]
[1724530118891,6.202,161.24,161.18,15.8426]
[1724530120187,11.86395594,161.23,161.18,15.8426]
[1724530121311,6.2027,161.22,161.18,15.8426]
[1724530121915,15.5049,161.24,161.18,15.8426]
[1724530122091,11.86395594,161.23,161.18,15.8426]
[1724530122507,6.2027,161.22,161.18,15.8426]
[1724530124037,6.2032,161.21,161.18,15.8426]
[1724530124213,6.2032,161.21,161.17,6.0415]
[1724530126615,6.2035,161.2,161.17,6.0415]
[1724530126819,6.2035,161.2,161.14,15.8426]
[1724530126993,6.204,161.19,161.14,15.8426]
[1724530132319,6.2034,161.21,161.14,15.8426]
[1724530137440,6.2036,161.2,161.14,15.8426]
[1724530139639,6.2032,161.21,161.14,15.8426]
[1724530142140,6.2036,161.2,161.14,15.8426]
[1724530147835,6.2039,161.19,161.14,15.8426]
[1724530153528,11.86395594,161.22,161.14,15.8426]
[1724530153529,6.2035,161.2,161.14,15.8426]
[1724530154931,6.2031,161.21,161.14,15.8426]
[1724530156550,6.2031,161.21,161.15,11.86395594]
[1724530158958,6.2031,161.21,161.14,15.8426]
[1724530162554,6.2035,161.2,161.14,15.8426]
[1724530162861,6.2039,161.19,161.14,15.8426]
[1724530165232,6.2039,161.19,161.14,15.8426]
[1724530169963,18.66,161.24,161.14,15.8426]
[1724530169964,11.86395594,161.24,161.14,15.8426]
[1724530170133,65.0,161.23,161.14,15.8426]
[1724530170334,6.2034,161.21,161.14,15.8426]
[1724530170545,6.2035,161.2,161.14,15.8426]
[1724530175756,45.0,161.19,161.14,15.8426]
[1724530176139,11.86395594,161.18,161.13,6.19]
[1724530177366,6.2046,161.17,161.13,6.19]
[1724530178366,6.2046,161.17,161.1,15.8899]
[1724530178574,6.2046,161.17,161.11,4.66030123]
[1724530178755,6.2046,161.17,161.1,15.8899]
[1724530178956,6.2046,161.17,161.11,1.55376726]
[1724530179156,6.2046,161.17,161.12,1.55376726]
[1724530179354,6.2046,161.17,161.13,1.55376726]
[1724530179555,6.205,161.16,161.1,15.8899]
[1724530179754,6.205,161.16,161.11,1.55375088]
[1724530179961,6.2054,161.15,161.1,15.8899]
[1724530180143,6.2054,161.15,161.11,1.55396565]
[1724530180348,6.2054,161.15,161.1,15.8899]
[1724530180670,11.86395594,161.14,161.06,22.4303]
[1724530180875,11.86395594,161.14,161.07,4.57611857]
[1724530181046,45.0,161.13,161.08,1.55398974]
[1724530181244,45.0,161.13,161.06,22.4303]
[1724530181245,11.86395594,161.12,161.06,22.4303]
[1724530181555,6.2073,161.11,161.07,1.55416108]
[1724530181764,51.2074,161.1,161.06,22.4303]
[1724530181958,51.2074,161.1,161.07,1.55418349]
[1724530182150,51.2074,161.1,161.08,1.55418349]
[1724530182350,51.2074,161.1,161.06,22.4303]
[1724530182571,51.2074,161.1,161.07,1.55422424]
[1724530182739,51.2074,161.1,161.08,1.55422424]
[1724530183062,51.2074,161.1,161.06,22.4303]
[1724530183264,51.2074,161.1,161.07,1.55421702]
[1724530183473,63.07135594,161.1,161.03,22.4303]
[1724530183654,63.07135594,161.1,161.04,1.55429174]
[1724530183856,63.07135594,161.1,161.05,1.55429174]
[1724530184048,63.07135594,161.1,161.06,1.55429174]
[1724530184244,6.2077,161.09,161.03,22.4303]
[1724530184449,11.86395594,161.08,161.04,1.55429609]
[1724530184649,11.86395594,161.08,161.05,1.55429609]
[1724530184851,51.2085,161.07,161.03,22.4303]
[1724530185972,11.86395594,161.06,160.98,22.4303]
[1724530186273,6.2081,161.08,160.99,1.55466909]
[1724530186442,6.2081,161.08,161.0,1.55466909]
[1724530186639,6.2081,161.08,161.01,1.55466909]
[1724530186882,6.2081,161.08,161.02,1.55466909]
[1724530187165,15.6261,161.12,161.0,11.86395594]
[1724530187166,18.07145594,161.1,161.0,11.86395594]
[1724530188866,18.07145594,161.1,160.98,22.4303]
[1724530189064,18.07145594,161.1,161.0,11.86395594]
[1724530189768,6.2079,161.09,160.98,22.4303]
[1724530189972,6.2079,161.09,161.0,11.86395594]
[1724530191269,18.07125594,161.1,161.0,11.86395594]
[1724530198369,6.2069,161.11,161.02,11.86395594]
[1724530199182,11.86395594,161.12,161.04,11.86395594]
[1724530199183,6.2065,161.12,161.04,11.86395594]
[1724530199372,6.2062,161.13,161.05,22.8047]
[1724530200285,11.86395594,161.14,161.05,22.8047]
[1724530200286,18.06975594,161.14,161.05,22.8047]
[1724530201203,274.06,161.19,161.06,11.86395594]
[1724530201204,6.2054,161.15,161.06,11.86395594]
[1724530201972,18.06895594,161.16,161.06,11.86395594]
[1724530202176,45.0,161.15,161.06,11.86395594]
[1724530202492,51.2057,161.15,161.06,11.86395594]
[1724530205875,11.86395594,161.18,161.08,11.86395594]
[1724530206075,45.0,161.17,161.08,11.86395594]
[1724530206274,45.0,161.17,161.09,6.4011]
[1724530207305,51.2047,161.17,161.09,6.4011]
[1724530208970,18.06895594,161.16,161.09,6.4011]
[1724530209600,11.86395594,161.16,161.09,6.4011]
[1724530209777,11.86395594,161.14,161.09,6.4011]
[1724530209986,11.86395594,161.12,161.09,6.4011]
[1724530211012,6.2062,161.13,161.09,6.4011]
[1724530211705,6.2058,161.14,161.09,6.4011]
[1724530211906,18.06975594,161.14,161.09,6.4011]
[1724530213382,11.86395594,161.14,161.09,6.4011]
[1724530214303,18.06925594,161.16,161.09,6.4011]
[1724530215113,11.86395594,161.14,161.09,6.4011]
[1724530216290,18.06995594,161.14,161.09,6.4011]
[1724530225596,6.206,161.14,161.09,6.4011]
[1724530225800,6.2054,161.15,161.09,6.4011]
[1724530226124,6.2054,161.15,161.1,15.8446]
[1724530226794,6.2046,161.17,161.1,15.8446]
[1724530237631,6.2042,161.18,161.1,15.8446]
[1724530238618,6.2043,161.18,161.1,15.8446]
[1724530238912,16.6647,161.24,161.12,6.3856]
[1724530239116,6.2034,161.2,161.12,6.3856]
[1724530240207,6.2034,161.2,161.13,16.0394]
[1724530243647,20.0,161.23,161.13,16.0394]
[1724530243648,31.86395594,161.23,161.13,27.90335594]
[1724530243939,45.0,161.22,161.13,27.90335594]
[1724530244170,51.203,161.22,161.13,27.90335594]
[1724530244827,6.203,161.21,161.13,27.90335594]
[1724530246714,45.0,161.22,161.13,27.90335594]
[1724530247315,45.0,161.22,161.14,1.55345459]
[1724530247528,45.0,161.22,161.13,27.90335594]
[1724530247820,51.203,161.22,161.14,1.55345466]
[1724530248045,45.0,161.22,161.14,1.24088667]
[1724530248240,45.0,161.22,161.13,27.90335594]
[1724530248441,45.0,161.22,161.14,1.55345466]
[1724530248754,45.0,161.22,161.13,29.14424271]
[1724530248921,45.0,161.22,161.14,1.55345474]
[1724530249251,51.2027,161.22,161.13,29.14424271]
[1724530249417,6.203,161.21,161.14,1.55345551]
[1724530249618,6.203,161.21,161.13,29.14424271]
[1724530249818,6.203,161.21,161.14,1.55345591]
[1724530250017,6.203,161.21,161.13,27.90335594]
[1724530250245,6.203,161.21,161.14,1.55345567]
[1724530250452,6.203,161.21,161.13,27.90335594]
[1724530250820,6.203,161.21,161.14,1.5534549]
[1724530251041,6.203,161.21,161.13,27.90335594]
[1724530251246,6.203,161.21,161.14,1.55346324]
[1724530251432,6.203,161.21,161.13,27.90335594]
[1724530251630,6.203,161.21,161.14,1.5534634]
[1724530251851,6.203,161.21,161.13,27.90335594]
[1724530252024,45.0,161.22,161.14,1.55347198]
[1724530252025,11.86395594,161.19,161.14,1.55347198]
[1724530252230,11.86395594,161.19,161.13,16.0394]
[1724530254225,6.2046,161.17,161.13,16.0394]
[1724530256640,6.2043,161.18,161.13,16.0394]
[1724530257036,11.86395594,161.19,161.13,16.0394]
[1724530257230,6.2042,161.18,161.13,16.0394]
[1724530260958,6.2047,161.17,161.13,16.0394]
[1724530261136,6.2053,161.16,161.12,6.3856]
[1724530267457,6.2054,161.15,161.12,6.3856]
[1724530269766,6.2054,161.15,161.09,15.296]
[1724530269955,6.2054,161.15,161.1,1.55383786]
[1724530270158,6.2054,161.15,161.11,1.55383786]
[1724530270348,6.2054,161.15,161.09,15.296]
[1724530270575,6.2054,161.15,161.1,1.55383786]
[1724530270788,6.2054,161.15,161.11,1.55383786]
[1724530270968,6.2054,161.15,161.09,15.296]
[1724530271166,6.2054,161.15,161.1,1.55383753]
[1724530271374,6.2054,161.15,161.11,1.55383753]
[1724530271575,6.2054,161.15,161.09,15.296]
[1724530271888,6.2054,161.15,161.1,1.55383753]
[1724530272067,6.2054,161.15,161.11,1.55383753]
[1724530272267,6.2054,161.15,161.09,15.296]
[1724530272486,6.2054,161.15,161.1,1.55383786]
[1724530272671,6.2054,161.15,161.11,1.55383786]
[1724530272987,6.2054,161.15,161.09,15.296]
[1724530273190,6.2054,161.15,161.1,1.55384611]
[1724530273389,6.2058,161.14,161.11,1.55384611]
[1724530273579,6.2058,161.14,161.09,15.296]
[1724530273769,6.2058,161.14,161.1,1.5538377]
[1724530273969,6.2058,161.14,161.11,1.55383786]
[1724530274163,6.2058,161.14,161.09,15.296]
[1724530274466,6.2058,161.14,161.1,1.55383803]
[1724530274667,6.2058,161.14,161.09,15.296]
[1724530275565,6.2058,161.14,161.1,1.55397528]
[1724530275886,6.2058,161.14,161.09,15.296]
[1724530276091,6.2058,161.14,161.1,1.55397528]
[1724530276265,6.2058,161.14,161.09,15.296]
[1724530277595,11.86395594,161.13,161.08,6.2762]
[1724530277776,11.86395594,161.13,161.09,1.55399824]
[1724530277964,11.86395594,161.13,161.08,6.2762]
[1724530278174,11.86395594,161.13,161.09,1.55399824]
[1724530278365,11.86395594,161.13,161.08,6.2762]
[1724530279285,6.2068,161.12,161.08,6.2762]
[1724530287184,6.2068,161.12,161.05,16.1978]
[1724530287375,6.2068,161.12,161.06,1.55407108]
[1724530287687,6.2068,161.12,161.07,1.55407108]
[1724530287885,6.2068,161.12,161.05,16.1978]
[1724530288089,6.2068,161.12,161.06,1.55407158]
[1724530288286,6.2068,161.12,161.07,1.55407158]
[1724530288506,6.2068,161.12,161.05,16.1978]
[1724530288694,6.2068,161.12,161.06,1.554063]
[1724530288895,6.2068,161.12,161.07,1.554063]
[1724530289081,6.2068,161.12,161.05,16.1978]
[1724530289405,6.2068,161.12,161.06,1.55406267]
[1724530289588,6.2068,161.12,161.07,1.55406267]
[1724530289781,6.2068,161.12,161.05,16.1978]
[1724530289984,6.2068,161.12,161.06,1.55406159]
[1724530290192,6.2068,161.12,161.07,1.55406159]
[1724530290407,6.2068,161.12,161.05,16.1978]
[1724530290708,18.07015594,161.13,161.06,1.55406267]
[1724530290902,18.07015594,161.13,161.07,1.55406267]
[1724530291108,18.07015594,161.13,161.05,16.1978]
[1724530291293,18.07015594,161.13,161.06,1.5540625]
[1724530291492,18.07015594,161.13,161.07,1.5540625]
[1724530291682,18.07015594,161.13,161.05,16.1978]
[1724530291884,18.07015594,161.13,161.06,1.55406283]
[1724530292090,18.07015594,161.13,161.07,1.55406283]
[1724530292392,18.07015594,161.13,161.05,16.1978]
[1724530292590,18.07015594,161.13,161.06,1.55405413]
[1724530292884,18.07015594,161.13,161.07,1.55405413]
[1724530293083,18.07015594,161.13,161.05,16.1978]
[1724530293283,18.07015594,161.13,161.06,1.55406271]
[1724530293506,18.07015594,161.13,161.07,1.55406271]
[1724530293707,11.86395594,161.11,161.04,6.2364]
[1724530294005,6.2074,161.1,161.05,1.55418577]
[1724530294187,6.2074,161.1,161.01,27.31695594]
[1724530294382,6.2074,161.1,161.02,9.01339333]
[1724530294685,6.2074,161.1,161.03,4.66166991]
[1724530294992,6.2074,161.1,161.04,1.55429538]
[1724530295207,6.2074,161.1,161.05,1.55429538]
[1724530295523,6.2074,161.1,161.01,27.31695594]
[1724530295807,6.2074,161.1,161.02,1.55429521]
[1724530296022,6.2074,161.1,161.03,1.55429521]
[1724530296187,11.86395594,161.11,161.04,1.55429521]
[1724530296188,6.2069,161.11,161.04,1.55429521]
[1724530296389,6.2069,161.11,161.05,1.55429521]
[1724530296603,6.2069,161.11,161.03,11.86395594]
[1724530296784,6.2069,161.11,161.04,1.55427267]
[1724530297110,6.2069,161.11,161.05,1.55427267]
[1724530297495,6.2069,161.11,161.06,1.55427267]
[1724530297804,6.2069,161.11,161.07,1.55427267]
[1724530297995,6.2069,161.11,161.03,11.86395594]
[1724530298312,6.2069,161.11,161.04,1.55414106]
[1724530298518,6.2069,161.11,161.05,1.55414106]
[1724530298717,6.2069,161.11,161.06,1.55414106]
[1724530299019,6.2069,161.11,161.07,1.55414106]
[1724530299183,6.2069,161.11,161.03,19.32262591]
[1724530299380,6.2069,161.11,161.04,1.55412285]
[1724530299581,6.2069,161.11,161.05,1.55412285]
[1724530299890,6.2069,161.11,161.06,1.55412285]
[1724530300091,6.2069,161.11,161.07,1.55412285]
[1724530300307,6.2069,161.11,161.03,11.86395594]
[1724530300604,6.2069,161.11,161.04,1.55414115]
[1724530300809,6.2069,161.11,161.05,1.55414115]
[1724530300991,6.2069,161.11,161.06,1.55414115]
[1724530301193,6.2069,161.11,161.07,1.55414115]
[1724530301400,6.2069,161.11,161.03,19.32262591]
[1724530301714,6.2069,161.11,161.04,1.55413149]
[1724530301883,6.2069,161.11,161.05,1.55413149]
[1724530302089,6.2069,161.11,161.06,1.55413149]
[1724530302294,6.2069,161.11,161.07,1.55413149]
[1724530302498,6.2069,161.11,161.03,11.86395594]
[1724530302699,6.2069,161.11,161.04,1.55413209]
[1724530302992,6.2069,161.11,161.05,1.55413209]
[1724530303189,6.2069,161.11,161.06,1.55413209]
[1724530303393,6.2069,161.11,161.03,11.86395594]
[1724530303611,6.2069,161.11,161.07,1.55413159]
[1724530304199,6.2069,161.11,161.03,11.86395594]
[1724530307713,6.2069,161.11,161.01,15.453]
[1724530307895,51.2073,161.1,161.01,27.31695594]
[1724530315505,51.2073,161.1,161.01,11.86395594]
[1724530317598,51.2073,161.1,161.0,6.0794]
[1724530317810,51.2073,161.1,161.01,11.86395594]
[1724530333167,45.0,161.1,161.01,11.86395594]
[1724530337769,45.0,161.1,161.02,3.02269675]
[1724530337947,45.0,161.1,161.01,11.86395594]
[1724530346591,45.0,161.1,160.98,12.85618007]
[1724530346592,6.4793,161.08,160.98,12.85618007]
[1724530346762,15.3395,161.06,160.98,6.48116831]
[1724530346957,45.0,161.05,160.97,11.86395594]
[1724530347358,56.86395594,161.05,160.94,6.48298159]
[1724530347576,56.86395594,161.05,160.96,11.86395594]
[1724530348791,27.20345594,161.03,160.94,6.48298159]
[1724530348969,33.41375594,161.03,160.93,11.86395594]
[1724530349166,45.0,161.02,160.93,11.86395594]
[1724530349369,6.2115,161.0,160.92,6.37501176]
[1724530349572,45.0,161.02,160.93,11.86395594]
[1724530350568,51.2104,161.02,160.93,11.86395594]
[1724530361524,51.2104,161.02,160.91,6.48530494]
[1724530361686,16.0218,161.01,160.94,11.86395594]
[1724530362005,45.0,161.0,160.91,6.48530494]
[1724530362203,45.0,161.0,160.93,11.86395594]
[1724530364330,45.0,161.0,160.94,1.55504253]
[1724530366193,45.0,161.0,160.93,11.86395594]
[1724530366401,45.0,161.0,160.93,13.41899847]
[1724530366590,45.0,161.0,160.94,1.55504253]
[1724530367182,45.0,161.0,160.93,11.86395594]
[1724530367376,45.0,161.0,160.93,13.41899847]
[1724530367597,45.0,161.0,160.94,1.55504253]
[1724530367993,45.0,161.0,160.93,11.86395594]
[1724530368191,45.0,161.0,160.93,13.41899847]
[1724530368391,45.0,161.0,160.94,1.55504253]
[1724530368705,6.2501,160.99,160.88,6.37501176]
[1724530368905,6.2501,160.99,160.92,11.86395594]
[1724530369481,6.2501,160.99,160.92,13.41910176]
[1724530369691,6.2501,160.99,160.93,1.55514582]
[1724530369888,6.2501,160.99,160.92,11.86395594]
[1724530370298,6.2501,160.99,160.92,13.41910176]
[1724530370602,16.0218,160.98,160.93,1.55514582]
[1724530370810,16.0218,160.98,160.92,11.86395594]
[1724530371204,16.0218,160.98,160.92,13.41910176]
[1724530371406,16.0218,160.98,160.93,1.55511933]
[1724530371916,16.0218,160.98,160.92,11.86395594]
[1724530372095,16.0218,160.98,160.89,6.48246616]
[1724530372297,16.0218,160.98,160.92,11.86395594]
[1724530375017,16.0218,160.98,160.9,11.86395594]
[1724530375307,45.0,160.97,160.9,11.86395594]
[1724530375717,45.0,160.97,160.89,11.86395594]
[1724530375921,45.0,160.97,160.88,11.86395594]
[1724530376720,15.8394,160.95,160.86,6.48587824]
[1724530376906,45.0,160.94,160.85,11.86395594]
[1724530378307,51.2137,160.94,160.85,11.86395594]
[1724530378612,45.0,160.94,160.85,11.86395594]
[1724530379815,56.86395594,160.94,160.85,11.86395594]
[1724530380005,15.8394,160.93,160.85,11.86395594]
[1724530380211,45.0,160.92,160.85,11.86395594]
[1724530388920,15.1229,161.08,160.92,21.043]
[1724530389119,15.1229,161.08,160.93,46.24192159]
[1724530389430,15.1229,161.08,161.04,11.86395594]
[1724530389942,15.1229,161.08,160.93,51.7191421]
[1724530390232,6.2089,161.06,160.98,11.86395594]
[1724530391507,20.0,161.07,160.98,11.86395594]
[1724530391712,20.0,161.07,160.92,21.043]
[1724530391713,20.0,161.07,161.0,11.86395594]
[1724530392219,26.2085,161.07,161.0,11.86395594]
[1724530393610,45.0,161.06,161.0,11.86395594]
[1724530395119,45.0,161.06,160.98,11.86395594]
[1724530395909,45.0,161.06,160.92,21.043]
[1724530396125,6.2095,161.05,160.97,11.86395594]
[1724530397017,51.2088,161.06,160.97,11.86395594]
[1724530398039,6.2094,161.05,160.96,11.86395594]
[1724530398231,45.0,161.04,160.96,11.86395594]
[1724530399212,11.86395594,161.03,160.93,11.86395594]
[1724530401345,51.2096,161.04,160.93,11.86395594]
[1724530401512,63.07355594,161.04,160.93,11.86395594]
[1724530403938,63.07355594,161.04,160.95,11.86395594]
[1724530405224,56.86395594,161.04,160.95,11.86395594]
[1724530406342,11.86395594,161.02,160.89,6.49169436]
[1724530406643,11.86395594,161.02,160.9,45.0]
[1724530406844,11.86395594,161.02,160.92,11.86395594]
[1724530410451,11.86395594,161.02,160.92,11.86395594]
[1724530411243,11.86395594,161.0,160.91,11.86395594]
[1724530411439,51.2109,161.01,160.92,1.24253861]
[1724530411640,51.2109,161.01,160.93,1.24247715]
[1724530413958,51.2109,161.01,160.92,11.86395594]
[1724530414137,51.2109,161.01,160.93,1.24248503]
[1724530415752,51.2109,161.01,160.92,11.86395594]
[1724530416252,51.2109,161.01,160.89,6.49169436]
[1724530416452,51.2109,161.01,160.91,11.86395594]
[1724530416829,51.2109,161.01,160.92,1.24248114]
[1724530417052,51.2109,161.01,160.93,1.24248114]
[1724530419750,51.2109,161.01,160.91,11.86395594]
[1724530419954,51.2109,161.01,160.92,1.2424825]
[1724530420149,51.2109,161.01,160.93,1.2424825]
[1724530420665,51.2108,161.01,160.93,1.2424825]
[1724530421047,45.0,161.01,160.93,1.2424825]
[1724530421244,45.0,161.01,160.9,1.2424979]
[1724530421448,6.2111,161.0,160.91,11.86395594]
[1724530421645,6.2111,161.0,160.92,1.24248015]
[1724530421845,6.2111,161.0,160.93,1.24248015]
[1724530422254,51.2108,161.01,160.93,1.24248015]
[1724530423287,51.2108,161.01,160.91,11.86395594]
[1724530423450,51.2108,161.01,160.92,1.24247993]
[1724530423773,51.2108,161.01,160.93,1.24247993]
[1724530425075,51.2108,161.01,160.9,1.24248036]
[1724530425256,51.2108,161.01,160.9,13.1064363]
[1724530425947,6.2112,161.0,160.9,13.1064363]
[1724530427673,51.2108,161.01,160.92,11.86395594]
[1724530428682,51.2108,161.01,160.93,1.24249519]
[1724530430969,51.2108,161.01,160.91,1.24249677]
[1724530431892,51.2108,161.01,160.92,1.55531733]
[1724530432066,51.2108,161.01,160.93,1.24249773]